Cogmind - Beta 17.1 @@@ ROGUE MODE // 2026.08.27 @ 22:59:33 Player: most_lamentable Result: Destroyed by D-53 Grenadier with Mini Grenade Launcher Performance ------------- Evolutions (3) 1500 Regions Visited (7) 1400 Robots Destroyed (45) 225 Value Destroyed (1420) 1420 Prototype IDs (24) 480 Alien Tech Used (0) 0 Bonus (500) 500 TOTAL SCORE: 5525 Bonus ------- Entered Garrisons 200 Aligned with FarCom 300 Cogmind --------- Core Integrity 0/700 Matter 300/300 Energy 98/100 System Corruption 1% Temperature Cool (0) Movement Core (50) Location -7/Garrison Parts ------- > --- POWER (1) -------- (None) > --- PROPULSION (2) --- (None) > --- UTILITY (8) ------ Machine Analyzer Targeting Computer Improved Targeting Computer System Shield > --- WEAPON (2) ------- (None) > --- INVENTORY (5) ---- Armored Huge Wheel Improved Shield Generator Dynamic Insulation System Improved Datajack Peak State ------------ > --- POWER ------------ Improved Ion Engine > --- PROPULSION ------- Armored Treads Armored Treads > --- UTILITY ---------- Small Storage Unit Machine Analyzer Improved Sensor Array Targeting Computer Targeting Computer Improved Targeting Computer Hardened Medium Armor Plating Dynamic Insulation System > --- WEAPON ----------- Enhanced Autogun Gauss Rifle > --- INVENTORY -------- Light Nuclear Core Armored Wheel Seismic Detector Hardlight Generator Improved Shield Generator Improved Medium Laser Mini Grenade Launcher Improved Datajack [Rating: 36] Favorites ----------- Power Ion Engine Engine Ion Engine Power Core Light Nuclear Core Propulsion Compact Wheel Treads Armored Treads Wheel Compact Wheel Utility Small Storage Unit Device Improved Heat Sink Storage Small Storage Unit Processor Targeting Computer Hackware System Shield Protection Hardened Medium Armor Plating Weapon Heavy Assault Rifle Energy Gun AWS/Thermal Energy Cannon Heavy Ion Cannon Ballistic Gun Heavy Assault Rifle Ballistic Cannon Assault Cannon Launcher Mini Grenade Launcher Build | -11 -10 -10 -10 -9 -8 -7 -7 ------- Run | Yrd Mat Min Exi Min Mat Fac Gar Slots Evolved 6 | . . . . . 4 2 . Power . | . . . . . . . . Propulsion . | . . . . . . . . Utility 6 | . . . . . 4 2 . Weapon . | . . . . . . . . Parts Attached 51 | 4 8 2 1 1 18 17 . Power 7 | 1 . . . 1 3 2 . Engine 4 | 1 . . . 1 2 . . Core 3 | . . . . . 1 2 . Reactor . | . . . . . . . . Propulsion 10 | 2 2 . . . 4 2 . Treads 6 | . 2 . . . 3 1 . Leg . | . . . . . . . . Wheel 4 | 2 . . . . 1 1 . Hover . | . . . . . . . . Flight . | . . . . . . . . Utility 18 | 1 1 . . . 8 8 . Device 10 | . 1 . . . 4 5 . Storage 1 | 1 . . . . . . . Processor 4 | . . . . . 4 . . Hackware 1 | . . . . . . 1 . Protection 2 | . . . . . . 2 . Artifact . | . . . . . . . . Weapon 16 | . 5 2 1 . 3 5 . Energy Gun 3 | . . . 1 . . 2 . Energy Cannon 1 | . . . . . . 1 . Ballistic Gun 7 | . 4 . . . 2 1 . Ballistic Cannon 2 | . . 1 . . 1 . . Launcher 3 | . 1 1 . . . 1 . Special Weapon . | . . . . . . . . Impact Weapon . | . . . . . . . . Slashing Weapon . | . . . . . . . . Piercing Weapon . | . . . . . . . . Special Melee Weapon . | . . . . . . . . Unidentified Prototypes 1 | . . . . . 1 . . Parts Lost 24 | . . . . . 6 15 3 Power 4 | . . . . . 2 2 . Propulsion 4 | . . . . . 2 2 . Utility 10 | . . . . . 1 6 3 Weapon 6 | . . . . . 1 5 . Highest Loss Streak 6 | . . . . . 4 6 3 To Critical Strikes . | . . . . . . . . Average Backups 7 | 4 7 8 8 8 7 6 4 Power . | . 1 1 1 1 . . . Propulsion 1 | 1 2 2 1 1 . . 1 Utility 1 | . . . 1 1 2 3 2 Weapon 2 | 1 4 3 3 3 3 1 . Tool/Special . | . . . . . . . . Unused Backups 17 | . 3 1 . 1 5 4 3 Power 2 | . . . . . 2 . . Propulsion 4 | . 2 . . . . 1 1 Utility 5 | . . . . . 2 2 1 Weapon 4 | . 1 1 . 1 . 1 . Tool/Special 2 | . . . . . 1 . 1 Average Slot Usage (%) 88 | . 90 100 89 85 85 92 51 Engine 8 | . 14 14 14 14 7 2 . Core 1 | . . . . . . 4 . Treads 5 | . 5 . . . 5 9 . Wheel 13 | . 22 28 28 28 11 1 . Device 16 | . 5 14 14 14 22 15 21 Storage 9 | . 14 14 14 14 9 6 . Processor 13 | . . . . . 16 26 23 Protection 2 | . . . . . . 8 . Energy Gun 3 | . . . 9 14 5 1 . Ballistic Gun 9 | . 27 17 4 . 4 10 . Launcher 1 | . . 8 4 . . . . Peak Build Rating 36 | 4 12 15 24 25 33 36 13 Average Rating 23 | 3 9 12 20 24 28 32 12 On Entrance 14 | . 4 12 12 24 25 29 13 Avg Prop Armor Cover (%) 8 | . . . . . . 8 . Naked Turns . | . . . . . . . . Heaviest Build 34 | 10 17 23 19 24 34 34 5 Greatest Support 42 | 32 40 32 32 32 40 42 3 Greatest Overweight (x) 8 | 3 . . . . 7 8 1 Average Overweight (x) . | . . . . . . . . Largest Inventory Capacity 8 | 8 8 8 8 8 8 8 5 Average Capacity 7 | 7 8 8 8 8 8 7 5 Most Carried 8 | 8 8 8 8 8 8 8 5 Average Carried 7 | 4 7 7 7 7 7 7 5 Final Capacity 8 | 8 8 8 8 8 8 5 5 Final Carried 8 | 8 8 8 8 8 8 5 5 Class Distribution -------------------- 65% | Mutant 14% | Scavenger-Skirmisher 13% | Skirmisher 7% | Scavenger-Mutant Dominant Class ---------------- Mutant | -10/Materials Mutant | -10/Mines Mutant | -10/Exiles Mutant | -9/Mines Mutant | -8/Materials Skirmisher | -7/Factory Mutant | -7/Garrison Resources | -11 -10 -10 -10 -9 -8 -7 -7 ----------- Run | Yrd Mat Min Exi Min Mat Fac Gar Matter Collected 1272 | 181 226 106 . 55 346 273 85 Remotely . | . . . . . . . . Salvage Created 1537 | . 226 71 . 229 551 460 . Parts 96 | . 17 8 . 10 33 28 . Haulers Intercepted . | . . . . . . . . Recyclers Shooed 2 | . . 1 . . 1 . . Parts Field Recycled . | . . . . . . . . Retrieved Matter . | . . . . . . . . Parts Self-Destructed . | . . . . . . . . Prevented . | . . . . . . . . Parts Restored . | . . . . . . . . Kills | -11 -10 -10 -10 -9 -8 -7 -7 ------- Run | Yrd Mat Min Exi Min Mat Fac Gar Combat Hostiles Destroyed 37 | . 5 3 . 6 14 9 . Guns 27 | . 4 . . 6 8 9 . Cannons 2 | . . . . . 2 . . AOE 8 | . 1 3 . . 4 . . Classes Destroyed 12 | . 3 2 . 2 3 2 . Worker 1 | . . . . . . 1 . Builder 2 | . 1 . . . . 1 . Recycler 1 | . . 1 . . . . . Operator 1 | . . . . . . 1 . Watcher 3 | . 1 . . . 2 . . Swarmer 12 | . . 3 . 2 4 3 . Grunt 13 | . 5 . . 2 1 5 . Brawler 1 | . . . . 1 . . . Duelist 1 | . . . . 1 . . . Sentry 6 | . . . . . 6 . . Hunter 3 | . . . . . 2 1 . Heavy 1 | . . . . . 1 . . Best Kill Streak 5 | . 2 4 . 2 4 5 . Combat Bots Only 5 | . 2 3 . 2 4 5 . Max Kills in Single Turn 3 | . 2 2 . 1 3 1 . Gunslinging . | . . . . . . . . Exploded 3 | . 1 2 . . 3 . . Melee . | . . . . . . . . Uniques/NPCs Destroyed . | . . . . . . . . Combat | -11 -10 -10 -10 -9 -8 -7 -7 -------- Run | Yrd Mat Min Exi Min Mat Fac Gar Hostile Shots Fired 358 | . 11 3 . 11 69 230 34 Missed 123 | . 4 . . 6 15 85 13 Hits 235 | . 7 3 . 5 54 145 21 Projectile 235 | . 7 3 . 5 54 145 21 AOE 4 | . . . . . . 1 3 Critical Strikes 5 | . . . . . 3 2 . Damage Taken 3704 | . 82 79 . 42 1219 1914 368 Core 1085 | . 48 14 . 11 283 421 308 Absorbed by Shields 32 | . . . . . . . 32 Redirected to Shielding 101 | . . . . . . 101 . Regen/Repaired (Parts) 19 | . . . . . 19 . . Core Remaining (%) 72 | 100 . . . 70 48 . . Volleys Fired 77 | . 14 2 . . 18 43 . Largest 2 | . 2 1 . . 2 2 . Hottest 120 | . 46 30 . . 76 120 . Shots Fired 175 | . 27 2 . 24 63 59 . Gun 148 | . 26 . . 24 45 53 . Cannon 18 | . . . . . 15 3 . Launcher 9 | . 1 2 . . 3 3 . Special . | . . . . . . . . Kinetic 104 | . 26 . . . 30 48 . Thermal 57 | . . . . 24 30 3 . Explosive 9 | . 1 2 . . 3 3 . Electromagnetic 5 | . . . . . . 5 . Robot Hit Streak 15 | . 6 2 . 6 13 15 . Robot Miss Streak 2 | . 1 . . 1 2 2 . Penetration Max 1 | . . . . . 1 . . Secondary Targets 2 | . . . . . . 2 . Max Gunslinging Chain 1 | . . . . . . 1 . Autonomous 55 | . . . . 24 31 . . Shots Hit Robots 131 | . 18 1 . 18 50 44 . Core Hits 66 | . 9 6 . 7 21 23 . Critical Kills 1 | . . . . . . 1 . Critical Parts Destroyed 1 | . . . . . 1 . . Critical Strikes 2 | . . . . . 1 1 . Destroy 2 | . . . . . 1 1 . Melee Attacks . | . . . . . . . . Impact . | . . . . . . . . Slashing . | . . . . . . . . Piercing . | . . . . . . . . Sneak Attacks . | . . . . . . . . Combat Hostiles . | . . . . . . . . Follow-up Attacks . | . . . . . . . . Damage Inflicted 3589 | . 328 191 . 524 1646 900 . Guns 2564 | . 254 . . 524 1065 721 . Cannons 373 | . . . . . 295 78 . Explosions 652 | . 74 191 . . 286 101 . Melee . | . . . . . . . . Ramming . | . . . . . . . . Kinetic 1508 | . 254 . . . 574 680 . Thermal 1430 | . . . . 524 786 120 . Explosive 610 | . 74 191 . . 286 59 . Electromagnetic 41 | . . . . . . 41 . Impact . | . . . . . . . . Slashing . | . . . . . . . . Piercing . | . . . . . . . . Highest Corruption 1 | . . . . . . 1 1 Average Corruption 1 | . . . . . . 1 1 Corruption Purged . | . . . . . . . . Corruption Blocked . | . . . . . . . . Overload Shots . | . . . . . . . . Overflow Damage 5 | . . . . . 5 . . Projectiles 5 | . . . . . 5 . . Explosions . | . . . . . . . . Melee . | . . . . . . . . Knockbacks . | . . . . . . . . Impact . | . . . . . . . . Kinetic . | . . . . . . . . Secondary . | . . . . . . . . Self-Inflicted Damage 146 | . . 58 . . 31 57 . Shots 7 | . . 2 . . 2 3 . Rammed . | . . . . . . . . Targets Rammed . | . . . . . . . . Kicked . | . . . . . . . . Crushed . | . . . . . . . . Highest Temperature 122 | . 4 . . . 18 122 . Average Temperature 26 | . 2 . . . 8 27 . Received Heat Transfer 801 | . 45 . . 12 171 468 105 Siege Activations . | . . . . . . . . Martial Activations . | . . . . . . . . Shielding Activations . | . . . . . . . . Robots Disrupted . | . . . . . . . . Combat Hostiles . | . . . . . . . . Robots Corrupted . | . . . . . . . . Combat Hostiles . | . . . . . . . . Parts Fried . | . . . . . . . . Impact Corruptions . | . . . . . . . . Robots Melted . | . . . . . . . . Combat Hostiles . | . . . . . . . . Parts Melted 1 | . . . . 1 . . . Heat Transferred 1826 | . . . . 666 999 161 . Parts Sabotaged . | . . . . . . . . Parts Stolen . | . . . . . . . . Parts Stripped . | . . . . . . . . Power Chain Reactions 1 | . . . . . . 1 . Alert | -11 -10 -10 -10 -9 -8 -7 -7 ------- Run | Yrd Mat Min Exi Min Mat Fac Gar Maximum Alert Level . | . . . . . . . . Low Security (%) 100 | 100 100 100 . 100 100 100 100 Level 1 . | . . . . . . . . Level 2 . | . . . . . . . . Level 3 . | . . . . . . . . Level 4 . | . . . . . . . . Level 5 . | . . . . . . . . High Security . | . . . . . . . . Max Security . | . . . . . . . . Peak Influence 160 | . 72 93 . 125 160 101 15 Initial 64 | . . 16 . . 48 64 . Average 30 | . 29 32 . 64 38 26 . Influence Increases 1191 | . 189 93 . 156 471 267 15 Destroy 0b10 Robot/C 740 | . 100 60 . 120 280 180 . Destroy 0b10 Robot/NC 40 | . 10 5 . . 10 15 . Destroy Leader 196 | . 32 10 . 30 104 20 . Successful Hack 29 | . 8 . . . 21 . . Disable Machine 45 | . 15 . . . 15 15 . Destroy Structure 81 | . 9 18 . 6 26 22 . Lose Combat Pursuer 60 | . 15 . . . 15 15 15 Influence Decreases 1176 | . 147 132 3 30 454 410 . Entered New Map 186 | . . 26 3 . 78 79 . Time Decay 840 | . 147 106 . 30 325 232 . Lost Part 150 | . . . . . 51 99 . Squads Dispatched 8 | . 2 . . . 2 4 . Investigation . | . . . . . . . . Extermination 1 | . . . . . . 1 . Reinforcement 4 | . 2 . . . 2 . . Assault . | . . . . . . . . Garrison 3 | . . . . . . 3 . Intercept . | . . . . . . . . Searches Triggered . | . . . . . . . . Construction Impeded . | . . . . . . . . Haulers Reinforced . | . . . . . . . . Active Scanning Responses . | . . . . . . . . Cargo Convoy Interrupts . | . . . . . . . . Stealth | -11 -10 -10 -10 -9 -8 -7 -7 --------- Run | Yrd Mat Min Exi Min Mat Fac Gar Distress Signals 3 | . 2 . . . . 1 . Communications Jammed . | . . . . . . . . Distress Signals . | . . . . . . . . Times Spotted 62 | . 10 3 . 7 17 17 8 Peak Tracking Total 7 | . 3 3 . 3 4 6 7 Tactical Retreats 4 | . 1 . . . 1 1 1 Traps | -11 -10 -10 -10 -9 -8 -7 -7 ------- Run | Yrd Mat Min Exi Min Mat Fac Gar Traps Triggered 6 | . . . . . 1 3 2 Indirectly . | . . . . . . . . Trap Hack Attempts . | . . . . . . . . Triggered . | . . . . . . . . Disarmed . | . . . . . . . . Reprogrammed . | . . . . . . . . Reused . | . . . . . . . . Traps Extracted . | . . . . . . . . Installed . | . . . . . . . . Triggered . | . . . . . . . . Machines | -11 -10 -10 -10 -9 -8 -7 -7 ---------- Run | Yrd Mat Min Exi Min Mat Fac Gar Machines Disabled 3 | . 1 . . . 1 1 . Max in Single Turn 1 | . 1 . . . 1 1 . Machines Repaired . | . . . . . . . . Machines Dismantled . | . . . . . . . . Machines Sabotaged . | . . . . . . . . Overloaded Fab Kills . | . . . . . . . . Hacking | -11 -10 -10 -10 -9 -8 -7 -7 --------- Run | Yrd Mat Min Exi Min Mat Fac Gar Machines Accessed 17 | . 3 . 2 1 6 5 . Terminals 7 | . 2 . . 1 4 . . Fabricators . | . . . . . . . . Repair Stations 2 | . . . . . 1 1 . Recycling Units 3 | . 1 . . . . 2 . Scanalyzers 1 | . . . . . 1 . . Garrison Access 2 | . . . . . . 2 . Total Hacks 56 | . 5 . 24 2 16 9 . Successful 39 | . 2 . 24 1 9 3 . Failed 17 | . 3 . . 1 7 6 . Catastrophic 5 | . 2 . . . 2 1 . Database Lockouts . | . . . . . . . . Manual 14 | . 4 . 1 . 8 1 . Terminals 17 | . 3 . . 2 12 . . Fabricators . | . . . . . . . . Repair Stations 4 | . . . . . 2 2 . Recycling Units 6 | . 2 . . . . 4 . Scanalyzers 2 | . . . . . 2 . . Garrison Access 3 | . . . . . . 3 . Terminal Hacks 31 | . 1 . 24 1 5 . . Record 23 | . . . 23 . . . . Robot Analysis 3 | . . . . . 3 . . Branch Access Points 2 | . 1 . . . 1 . . Emergency Access Points 1 | . . . . . 1 . . Zone Layout 1 | . . . . 1 . . . Proto ID Catalog 1 | . . . 1 . . . . Fabricator Hacks . | . . . . . . . . Repair Station Hacks 2 | . . . . . 2 . . Scan Component 1 | . . . . . 1 . . Repair 1 | . . . . . 1 . . Recycling Unit Hacks 2 | . 1 . . . . 1 . Report Inventory 2 | . 1 . . . . 1 . Scanalyzer 2 | . . . . . 2 . . Retrieve Study 2 | . . . . . 2 . . Garrison Access Hacks 1 | . . . . . . 1 . Unlock Access 1 | . . . . . . 1 . Unauthorized Hacks 1 | . . . . . . 1 . Terminals . | . . . . . . . . Fabricators . | . . . . . . . . Repair Stations . | . . . . . . . . Recycling Units 1 | . . . . . . 1 . Reject 1 | . . . . . . 1 . Scanalyzers . | . . . . . . . . Garrison Access . | . . . . . . . . Data Cores Recovered . | . . . . . . . . Used . | . . . . . . . . Hacking Detections 13 | . 2 . . 1 6 4 . Full Trace Events 1 | . . . . . 1 . . Feedback Events . | . . . . . . . . Feedback Blocked . | . . . . . . . . Robot Schematics Acquired . | . . . . . . . . Robots Built . | . . . . . . . . Authchips . | . . . . . . . . Time . | . . . . . . . . Total Robot Build Rating . | . . . . . . . . Part Schematics Acquired . | . . . . . . . . Parts Built . | . . . . . . . . Authchips . | . . . . . . . . Time . | . . . . . . . . Total Part Build Rating . | . . . . . . . . Part Studies Acquired 2 | . . . . . 2 . . Parts Repaired 1 | . . . . . 1 . . Time 38 | . . . . . 38 . . Parts Recycled . | . . . . . . . . Recycled Matter . | . . . . . . . . Retrieved Matter . | . . . . . . . . Retrieved Components . | . . . . . . . . Parts Scanalyzed . | . . . . . . . . Part Schematics Acquired . | . . . . . . . . Parts Damaged . | . . . . . . . . Bothacking | -11 -10 -10 -10 -9 -8 -7 -7 ------------ Run | Yrd Mat Min Exi Min Mat Fac Gar Used RIF Installer . | . . . . . . . . Robots Hacked . | . . . . . . . . Non-combat . | . . . . . . . . Combat . | . . . . . . . . Robot Hacks Applied . | . . . . . . . . Relay Couplers Released . | . . . . . . . . Fabnet Peak Effective % . | . . . . . . . . Robots Rewired . | . . . . . . . . Allies Hacked . | . . . . . . . . Hacks Repelled . | . . . . . . . . Allies | -11 -10 -10 -10 -9 -8 -7 -7 -------- Run | Yrd Mat Min Exi Min Mat Fac Gar Total Allies . | . . . . . . . . Largest Group . | . . . . . . . . Highest-Rated Group . | . . . . . . . . Highest-Rated Ally . | . . . . . . . . Total Orders . | . . . . . . . . Ally Attacks . | . . . . . . . . Total Damage . | . . . . . . . . Kills . | . . . . . . . . Allies Corrupted . | . . . . . . . . Allies Melted . | . . . . . . . . Intel | -11 -10 -10 -10 -9 -8 -7 -7 ------- Run | Yrd Mat Min Exi Min Mat Fac Gar Active Infowar (turns) 1247 | . . . . . 223 892 132 Sensors 1096 | . . . . . 223 873 . Terrain 585 | . . . . . . 585 . Seismic 168 | . . . . . . 168 . Machine Analysis 1172 | . . . . . 148 892 132 ECM 10 | . . . . . . 10 . Robot Analysis Total 3 | . . . . . 3 . . Derelict Logs Recovered 1 | . . 1 . . . . . Drone Launches . | . . . . . . . . Drone Recoveries . | . . . . . . . . Exploration | -11 -10 -10 -10 -9 -8 -7 -7 ------------- Run | Yrd Mat Min Exi Min Mat Fac Gar Turns Passed 3278 | 64 419 282 426 74 989 892 132 Spaces Moved 2303 | 46 314 265 424 61 560 506 127 Core 198 | 10 . . . . 10 51 127 Treads 464 | . 8 . . . 143 313 . Legs . | . . . . . . . . Wheels 1641 | 36 306 265 424 61 407 142 . Hover . | . . . . . . . . Flight . | . . . . . . . . Fastest Speed 50 | 50 100 100 100 100 95 50 50 Average Speed 115 | 105 101 100 100 100 124 147 84 Slowest Speed 450 | 200 160 100 100 100 400 450 100 Overloaded Moves . | . . . . . . . . Propulsion Burnouts . | . . . . . . . . Robots Hopped . | . . . . . . . . Potential Cave-ins . | . . . . . . . . Cave-ins Triggered . | . . . . . . . . Exploration Rate (%) 39 | 4 67 58 91 12 45 19 20 Regions Visited 7 Branch Regions 3 Pre-discovered Areas 2 | . . 1 1 . . . . Known Exits Taken 2 | . 1 . . . . 1 . Unknown Exits Taken 5 | 1 . 1 1 1 1 . . Scrap Searched 1 | . . 1 . . . . . Spaces Dug . | . . . . . . . . Terrain Destroyed 122 | . 9 21 . 6 30 56 . Melee . | . . . . . . . . Projectile 12 | . . . . 6 6 . . AOE 110 | . 9 21 . . 24 56 . Terrain Rammed . | . . . . . . . . Walls Destroyed . | . . . . . . . . Machines Disabled . | . . . . . . . . Actions | -11 -10 -10 -10 -9 -8 -7 -7 --------- Run | Yrd Mat Min Exi Min Mat Fac Gar Total 2810 | 61 382 280 427 75 826 607 152 Wait 250 | . 25 9 . 11 191 14 . Move 2297 | 45 313 264 423 60 559 506 127 Hop . | . . . . . . . . Pick Up 56 | 12 7 1 . 1 21 14 . Fast Attach 10 | . 1 1 1 . 3 4 . Attach 32 | 4 4 . . . 12 12 . Detach 2 | . . . 1 . 1 . . Swap 24 | . 13 1 . 1 6 3 . Drop 37 | . 5 2 2 2 15 11 . Fire 77 | . 14 2 . . 18 43 . Melee . | . . . . . . . . Ram . | . . . . . . . . Kick . | . . . . . . . . Crush . | . . . . . . . . Escape Stasis 25 | . . . . . . . 25 Rewire . | . . . . . . . . Trap . | . . . . . . . . Miscellaneous . | . . . . . . . . Route ------- -11/Scrapyard -10/Materials (discovered 2 exits: [*Mat] / *Min) -10/Mines (discovered 2 exits: [*Mat] / *Exi) -10/Exiles -9/Mines -8/Materials -7/Factory (discovered 2 exits: [*Low] / Gar) -7/Garrison History --------- Turn | Location | Event 33 | -11/Scrapyard | Discovered new exit (range 15) 65 | -11/Scrapyard | Entered Materials 344 | -10/Materials | Build established: Mutant 400 | -10/Materials | Discovered new exit (range 12) 407 | -10/Materials | Identified exit to Mines 484 | -10/Materials | Entered Mines 549 | -10/Mines | A weapon hastily lodged in a ceiling crevice suddenly fell to the ground 748 | -10/Mines | Discovered new exit (range 9) 762 | -10/Mines | Deemed a non-threat by the Exiles lab entrance 762 | -10/Mines | Discovered new exit (range 5) 766 | -10/Mines | Entered Exiles 792 | -10/Exiles | Met 8R-AWN 809 | -10/Exiles | Met EX-HEX 840 | -10/Exiles | Met EX-BIN 851 | -10/Exiles | Aligned with FarCom system 852 | -10/Exiles | Given EX-Vault access code 880 | -10/Exiles | Opened EX-Vault 888 | -10/Exiles | Found AWS/Thermal 910 | -10/Exiles | Warned to stay clear of 0b10 Research branches 938 | -10/Exiles | Met EX-DEC 1007 | -10/Exiles | Visited The Gauntlet 1125 | -10/Exiles | Learned location of Zion (-7) 1180 | -10/Exiles | Discovered new exit (range 14) 1192 | -10/Exiles | Left Exiles lab with AWS/Thermal 1192 | -10/Exiles | Entered Mines 1195 | -9/Mines | Discovered new exit (range 13) 1199 | -9/Mines | Met a Derelict bent on vengeance 1266 | -9/Mines | Entered Materials 1266 | -8/Materials | Evolved 4 slots: Utility x4 1735 | -8/Materials | Repaired Imp. Heat Sink 1888 | -8/Materials | AWS/Thermal suddenly broke down 1945 | -8/Materials | Lost 4 parts (1p2n1w) 2150 | -8/Materials | Core integrity fell below 50% 2189 | -8/Materials | Discovered new exit (range 14) 2255 | -8/Materials | Entered Factory 2255 | -7/Factory | Evolved 2 slots: Utility x2 2334 | -7/Factory | Build established: Scavenger-Skirmisher 2708 | -7/Factory | Garrison activated, responded to threat 3008 | -7/Factory | Lost 3 parts (1n1u1w) 3106 | -7/Factory | Core integrity fell below 50% 3110 | -7/Factory | Discovered new exit (range 14) 3119 | -7/Factory | Lost 6 parts (1p1n1u3w) 3147 | -7/Factory | Identified exit to Garrison 3147 | -7/Factory | Entered Garrison 3159 | -7/Garrison | Lost 3 parts (3u) 3231 | -7/Garrison | Triggered checkpoint 3244 | -7/Garrison | Core integrity fell below 20% 3274 | -7/Garrison | Triggered checkpoint 3279 | -7/Garrison | Destroyed by D-53 Grenadier with Mini Grenade Launcher Last Messages --------------- 03255_ Field strength at 88. 03256_ Field strength at 82. 03257_ Field strength at 76. 03258_ Field strength at 70. 03259_ Field strength at 64. 03260_ Field strength at 58. 03261_ Field strength at 52. 03262_ Field strength at 46. 03263_ Field strength at 40. 03264_ Field strength at 34. 03265_ Field strength at 28. 03266_ Field strength at 22. 03267_ Field strength at 16. 03268_ Field strength at 10. 03269_ Field strength at 4. 03270_ Stasis field depleted. 03274_ Beams of light sweep through the air. An alarm sounds. 03274_ ECM Suite destroyed. 03274_ Seismic Detector destroyed. Map ----- +----------------------------------------------------+ | ?????????????????????????????????????????????????? | | ##???????????????????????????????????????????????? | | #???????????????????????????????????????????????? | | #???????????????????????????????????????????????? | | #???????????????????????????????????????????????? | | #???????????????????????????????????????????????? | | #???????????????????????????????????????????????? | | "###?????????????????????????????????????????????? | | #?????????????????????????????????????????????? | | #?????????????????????????????????????????????? | | #?????????????????????????????????????????????? | | ###?????????????????????????????????????????????? | | #???????????????????????????????????????????????? | | ###########?????????????????????????????????????? | | #?##??????????????????????????????????? | | #? ??????????????????????????????????? | | ######## #?# ??????????????????????????????????? | | #??????# #?# #?????????????????????????????????? | | #??????# #?# #???###???????????????????????????? | | #??????# #?# #???# ???????????????????????????? | | #????### #?# #???# #???????????????????????????? | | #????? + ### ###?# #???????????????????????????? | | #??????# ## ### #???????????????????????????? | | #?????## # i ## ##??????????????????????????? | | ###+### Y d ######## #????????????????? | | g @ #????????????????? | | #????????????????? | | ######## ###########????????????????? | | ???????# ## ## #??????????????????????????? | | ???????" "??????????????????????????? | | ???????" "??????????????????????????? | | ???????" "C?????????????????????????? | | ???????" "??????????????????????????? | | ???????# ## ## #???????????????Y??????????? | | ???????# ## ## #??????????????????????????? | | ??????? #??????????????????????????? | | ?????? #??????????????????????????? | | ?????? #??????????????????????????? | | ??????#######""""## #??????????????????????????? | | ????????????????C?# #??????????????????????????? | | ??????????????????? ???????????????????????????? | | ?????????????????????????????????????????????????? | | ?????????????????????????????????????????????????? | | ?????????????????????????????????????????????????? | | ?????????????????????????????????????????????????? | | ?????????????????????????????????????????????????? | | ?????????????????????????????????????????????????? | | ?????????????????????????????????????????????????? | | ?????????????????????????????????????????????????? | | ?????????????????????????????????????????????????? | +----------------------------------------------------+ Best States ------------- Heat Dissipation 65 Energy Generation 14 Energy Capacity 265 Matter Stores 300 Matter Capacity 300 Sight Range 16 Robot Scan Range 15 Terrain Scan Range 16 Terrain Scan Density 10 ECM Strength 2 EM Shielding 2 Armor Coverage 225 Utility Shielding 66 Evasion (%) 50 Targeting Accuracy 16 Recoil Reduction 2 Defensive Hacking 10 Item Schematics ----------------- None Robot Schematics ------------------ None Fabricated ------------ Nothing Repaired ---------- Imp. Heat Sink | 52% | -8/Materials Studied --------- Arm. Treads | -8/Materials | Hacked Imp. Datajack | -8/Materials | Hacked Alien Tech Used ----------------- None Achievements -------------- We Love MA Challenges ------------ None Game ------ Seed ThermalVortexNeutralizer Manual? 0 Play Time 00:51:12 Cumulative 43.3 hours Start 2026.08.27 @ 21:45:07 End 2026.08.27 @ 22:59:33 Sessions 1 Manual Loads 0 Difficulty Rogue Special Mode None Game No. 49 Rogue 49 Adventurer 0 Explorer 0 Win Type - Total 0 Types 0/0/0/0/0/0/0/0/0/0 Lore% 29 Gallery% 28 Achievement% 27 Wizard Run 0 Options --------- Layout 1 ASCII 0 Keyboard 0 Movement Mouse Keybinds 0 Fullscreen 0 Font 20/SmallcapsGlow Map View 50x40 Zoom Use 0% Tactical HUD 1 Map Filters NONE Filters NONE Steam 1 RUN: a76fc609-15cc-4db8-881c-7e94e02327ae